bitfinex/quotes_BTCUSD_20240729
["timestamp","ask_amount","ask_price","bid_price","bid_amount"]
[1722269086486,0.05,68180.0,68179.0,0.146672]
[1722269086689,0.04941275,68186.0,68178.0,0.18009939]
[1722269086690,0.05,68179.0,68178.0,0.037]
[1722269086886,0.1499127,68179.0,68178.0,0.037]
[1722269087089,0.2893127,68179.0,68178.0,0.014]
[1722269087313,0.2893127,68179.0,68173.0,0.04374674]
[1722269087314,0.1499127,68174.0,68173.0,0.04374674]
[1722269088280,0.4359957,68174.0,68173.0,0.04374674]
[1722269088479,0.2893127,68174.0,68173.0,0.04374674]
[1722269088712,0.2903127,68174.0,68173.0,0.05574674]
[1722269090611,0.4369957,68174.0,68173.0,0.05574674]
[1722269090857,1.0237277,68174.0,68173.0,0.012]
[1722269091078,1.3170937,68174.0,68173.0,0.012]
[1722269091329,1.46019309,68174.0,68173.0,0.012]
[1722269092017,1.16682709,68174.0,68173.0,0.012]
[1722269092126,0.05,68156.0,68153.0,0.36793397]
[1722269092326,0.05,68155.0,68154.0,0.14309939]
[1722269092958,0.05,68155.0,68154.0,0.16609939]
[1722269093164,0.1499127,68155.0,68154.0,0.16609939]
[1722269096921,0.1509127,68155.0,68154.0,0.17709939]
[1722269097111,0.7346847,68155.0,68154.0,0.011]
[1722269097312,0.1499127,68144.0,68133.0,0.29354]
[1722269097514,0.05,68135.0,68134.0,0.28986839]
[1722269097716,0.05,68135.0,68134.0,0.14309939]
[1722269098127,0.0499127,68138.0,68137.0,0.440289]
[1722269098426,0.1499127,68138.0,68137.0,0.14309939]
[1722269099279,0.34290812,68148.0,68131.0,0.01824798]
[1722269099280,0.0602,68132.0,68131.0,0.009086]
[1722269099483,0.2101127,68132.0,68131.0,0.009086]
[1722269100391,0.3568857,68132.0,68131.0,0.009086]
[1722269100591,0.2101127,68132.0,68131.0,0.009086]
[1722269100733,0.5036597,68132.0,68131.0,0.009086]
[1722269100934,0.3568857,68132.0,68131.0,0.009086]
[1722269101133,1.17097909,68132.0,68131.0,0.020086]
[1722269101329,1.17097909,68132.0,68127.0,0.009086]
[1722269101330,0.5902597,68128.0,68127.0,0.009086]
[1722269101555,1.0293247,68128.0,68127.0,0.009086]
[1722269101780,0.7357597,68128.0,68127.0,0.009086]
[1722269102024,0.2954127,68128.0,68127.0,0.009086]
[1722269102243,0.7357597,68128.0,68127.0,0.009086]
[1722269102471,1.0293247,68128.0,68127.0,0.009086]
[1722269102723,0.87885909,68128.0,68127.0,0.009086]
[1722269102942,1.17242409,68128.0,68127.0,0.009086]
[1722269103151,0.7357597,68128.0,68127.0,0.009086]
[1722269103380,0.2954127,68128.0,68127.0,0.009086]
[1722269103613,0.7357597,68128.0,68127.0,0.009086]
[1722269103833,1.36438741,68128.0,68127.0,0.009086]
[1722269104093,1.0293247,68128.0,68127.0,0.009086]
[1722269104343,0.2954127,68128.0,68127.0,0.009086]
[1722269104561,0.2954127,68128.0,68127.0,0.032086]
[1722269104782,0.2954127,68128.0,68127.0,0.009086]
[1722269104999,0.4421947,68128.0,68127.0,0.009086]
[1722269105241,0.7357597,68128.0,68127.0,0.009086]
[1722269106513,0.4421947,68128.0,68127.0,0.010086]
[1722269106746,0.7357597,68128.0,68127.0,0.010086]
[1722269106943,1.3228897,68128.0,68127.0,0.010086]
[1722269107166,0.78128737,68128.0,68127.0,0.010086]
[1722269107367,0.7357597,68128.0,68127.0,0.010086]
[1722269108022,0.2954127,68128.0,68127.0,0.010086]
[1722269108455,0.4421947,68128.0,68127.0,0.010086]
[1722269109785,0.2454127,68128.0,68127.0,0.010086]
[1722269109998,0.2954127,68128.0,68127.0,0.033086]
[1722269110862,0.05,68128.0,68127.0,0.033086]
[1722269111081,0.1499127,68128.0,68127.0,0.033086]
[1722269111512,0.0819,68134.0,68127.0,0.17618539]
[1722269111513,0.05,68130.0,68127.0,0.17618539]
[1722269112066,0.064,68135.0,68127.0,0.033086]
[1722269112067,0.0499127,68132.0,68127.0,0.033086]
[1722269112068,0.0499127,68132.0,68131.0,0.146776]
[1722269112307,0.1,68136.0,68131.0,0.146776]
[1722269112308,0.0499127,68136.0,68135.0,0.440301]
[1722269112589,0.09913882,68141.0,68139.0,0.146758]
[1722269112846,0.0499127,68141.0,68140.0,0.16609939]
[1722269113113,0.0499127,68142.0,68141.0,0.440262]
[1722269113391,0.09954257,68149.0,68141.0,0.16609939]
[1722269113641,0.0499127,68147.0,68142.0,0.28985039]
[1722269113876,0.0499127,68147.0,68142.0,0.16609939]
[1722269113877,0.05,68146.0,68142.0,0.16609939]
[1722269114109,0.0999127,68147.0,68142.0,0.16609939]
[1722269114110,0.0499127,68147.0,68142.0,0.16609939]
[1722269114387,0.05,68144.0,68143.0,0.14675]
[1722269114557,0.0999127,68147.0,68143.0,0.16609939]
[1722269114558,0.0499127,68147.0,68143.0,0.16609939]
[1722269114756,0.0499127,68147.0,68145.0,0.146744]
[1722269115031,0.0499127,68147.0,68146.0,0.43658639]
[1722269115237,0.04900378,68157.0,68153.0,0.1]
[1722269115438,0.04900378,68157.0,68156.0,0.440166]
[1722269115669,0.05,68159.0,68156.0,0.16609939]
[1722269115842,0.0499127,68160.0,68157.0,0.16609939]
[1722269116049,0.1,68161.0,68157.0,0.16609939]
[1722269116050,0.0499127,68161.0,68160.0,0.146713]
[1722269116225,0.05,68166.0,68164.0,0.146703]
[1722269116431,0.1499127,68163.0,68162.0,0.146708]
[1722269116632,0.7945,68167.0,68165.0,0.146702]
[1722269116633,0.1499127,68166.0,68165.0,0.146702]
[1722269116832,0.0999127,68167.0,68166.0,0.1467]
[1722269117075,0.0999127,68167.0,68166.0,0.60620039]
[1722269117076,0.0499127,68167.0,68166.0,0.60620039]
[1722269117209,0.0499127,68167.0,68166.0,0.89960139]
[1722269117416,0.14931666,68174.0,68166.0,0.16609939]
[1722269117605,0.14931666,68174.0,68172.0,0.146687]
[1722269117803,0.14931666,68174.0,68173.0,0.023]
[1722269117804,0.19931666,68174.0,68173.0,0.023]
[1722269118020,0.1499127,68174.0,68173.0,0.023]
[1722269118438,0.0638,68178.0,68172.0,0.023]
[1722269118439,0.1499127,68173.0,68172.0,0.023]
[1722269118642,0.1499127,68173.0,68172.0,0.16609939]
[1722269118843,0.1499127,68173.0,68172.0,0.023]
[1722269120250,0.1499127,68173.0,68157.0,0.04374674]
[1722269120251,0.2966297,68158.0,68157.0,0.04374674]
[1722269120415,0.0499127,68149.0,68148.0,0.04374674]
[1722269120630,0.1499127,68149.0,68148.0,0.04374674]
[1722269121629,0.2903127,68149.0,68148.0,0.04374674]
[1722269121830,0.2903127,68149.0,68137.0,0.3715]
[1722269121831,0.1499127,68138.0,68137.0,0.3715]
[1722269122037,0.1499127,68138.0,68125.0,0.0644]
[1722269122038,0.0499127,68128.0,68122.0,0.04374674]
[1722269122367,0.1499127,68128.0,68127.0,0.15218539]
[1722269123166,0.0499127,68128.0,68127.0,0.15218539]
[1722269123370,0.0499127,68132.0,68127.0,0.15218539]
[1722269123579,0.0499127,68132.0,68131.0,0.146776]
[1722269123735,0.0499127,68136.0,68135.0,0.146767]
[1722269123939,0.0499127,68136.0,68135.0,0.16609939]
[1722269124136,0.04978097,68141.0,68127.0,0.009086]
[1722269124137,0.0499127,68128.0,68127.0,0.009086]
[1722269124340,0.2966947,68128.0,68127.0,0.009086]
[1722269124540,0.5902597,68128.0,68127.0,0.009086]
[1722269125322,0.8838247,68128.0,68127.0,0.009086]
[1722269125523,0.5902597,68128.0,68127.0,0.009086]
[1722269126361,0.8838247,68128.0,68127.0,0.009086]
[1722269126526,0.5902597,68128.0,68127.0,0.009086]
[1722269126727,0.8838247,68128.0,68127.0,0.009086]
[1722269126996,0.5902597,68128.0,68127.0,0.009086]
[1722269127971,0.9600247,68128.0,68127.0,0.009086]
[1722269128342,1.10312409,68128.0,68127.0,0.009086]
[1722269129359,1.70898909,68128.0,68127.0,0.009086]
[1722269129544,1.60898909,68128.0,68127.0,0.009086]
[1722269129722,1.67064681,68128.0,68127.0,0.009086]
[1722269129924,1.6589369,68128.0,68127.0,0.009086]
[1722269130082,1.55898909,68128.0,68127.0,0.009086]
[1722269130490,1.26542409,68128.0,68127.0,0.009086]
[1722269130894,1.55898909,68128.0,68127.0,0.009086]
[1722269131752,1.61486485,68128.0,68127.0,0.009086]
[1722269132207,1.56486485,68128.0,68127.0,0.009086]
[1722269132464,1.27129985,68128.0,68127.0,0.009086]
[1722269133215,1.12820046,68128.0,68127.0,0.009086]
[1722269134083,0.29428846,68128.0,68127.0,0.009086]
[1722269134285,0.15578846,68128.0,68127.0,0.009086]
[1722269134488,0.15578846,68128.0,68127.0,0.032086]
[1722269134489,0.05578846,68128.0,68127.0,0.032086]
[1722269134706,0.15578846,68128.0,68127.0,0.032086]
[1722269134905,0.05578846,68128.0,68127.0,0.472439]
[1722269135106,0.15578846,68128.0,68127.0,0.032086]
[1722269135311,0.00587576,68128.0,68127.0,0.472439]
[1722269135528,0.05,68130.0,68129.0,0.14678]
[1722269135739,0.05,68130.0,68129.0,0.06674674]
[1722269135938,0.05,68130.0,68129.0,0.21352674]
[1722269136142,0.05,68130.0,68129.0,0.50708674]
[1722269136351,0.05,68130.0,68129.0,0.94374613]
[1722269136549,0.0499127,68135.0,68134.0,0.146769]
[1722269136698,0.1499127,68135.0,68134.0,0.58340739]
[1722269136903,0.1499127,68135.0,68134.0,0.60640739]
[1722269137129,0.07293725,68135.0,68134.0,0.89994639]
[1722269137372,0.02302455,68135.0,68134.0,1.19348539]
[1722269137583,0.02302455,68135.0,68134.0,0.89994639]
[1722269138406,0.02302455,68135.0,68134.0,0.99994639]
[1722269139221,0.17393725,68135.0,68134.0,0.16809939]
[1722269139635,0.17393725,68135.0,68134.0,0.32486839]
[1722269139841,0.02302455,68135.0,68134.0,0.90994639]
[1722269140045,0.02302455,68135.0,68134.0,0.61640739]
[1722269140249,0.07302455,68135.0,68134.0,0.17609939]
[1722269140602,0.07302455,68135.0,68134.0,0.31286839]
[1722269140603,0.07293725,68135.0,68134.0,0.31286839]
[1722269140825,0.07293725,68135.0,68134.0,0.60640739]
[1722269141053,0.17293725,68135.0,68134.0,0.60640739]
[1722269141302,0.17293725,68135.0,68134.0,0.16609939]
[1722269141525,0.1786801,68135.0,68134.0,0.023]
[1722269141737,0.1,68134.0,68133.0,0.023]
[1722269141939,0.1,68134.0,68133.0,0.31287039]
[1722269142160,0.1,68134.0,68133.0,0.16609939]
[1722269142161,0.1499127,68134.0,68133.0,0.16609939]
[1722269142574,0.1499127,68134.0,68133.0,0.023]
[1722269142575,0.15565422,68134.0,68133.0,0.023]
[1722269142784,0.586983,68145.0,68130.0,0.023]
[1722269142785,0.1499127,68131.0,68130.0,0.023]
[1722269142959,0.1499127,68131.0,68130.0,0.16609939]
[1722269143161,0.1499127,68131.0,68130.0,0.26609939]
[1722269143758,0.0499127,68131.0,68130.0,0.26609939]
[1722269144190,0.0499127,68133.0,68132.0,0.44032]
[1722269144361,0.0499127,68133.0,68132.0,0.87696639]
[1722269144567,0.0499127,68133.0,68132.0,0.89996639]
[1722269145006,0.0499127,68133.0,68132.0,0.60641939]
[1722269145195,0.0499127,68133.0,68132.0,0.31287239]
[1722269145419,0.1499127,68133.0,68132.0,0.16609939]
[1722269145822,0.0499127,68133.0,68132.0,0.31287239]
[1722269146023,0.07293621,68133.0,68132.0,0.60641939]
[1722269146454,0.0499127,68133.0,68132.0,0.60641939]
[1722269146802,0.0499127,68133.0,68132.0,0.89996639]
[1722269147648,0.52527467,68148.0,68132.0,0.89996639]
[1722269147649,0.62518737,68148.0,68135.0,0.1]
[1722269147798,0.62518737,68148.0,68143.0,0.440249]
[1722269147799,0.05,68144.0,68143.0,0.440249]
[1722269148005,0.0999127,68147.0,68143.0,0.440249]
[1722269148006,0.05,68145.0,68144.0,0.440239]
[1722269148210,0.1499127,68145.0,68144.0,0.169746]
[1722269148476,0.1499127,68145.0,68144.0,0.023]
[1722269148673,0.1,68145.0,68144.0,0.023]
[1722269148834,0.05,68145.0,68144.0,0.023]
[1722269149034,0.15562393,68145.0,68144.0,0.023]
[1722269149440,0.17864505,68145.0,68144.0,0.023]
[1722269149729,0.02873235,68145.0,68144.0,0.60634339]
[1722269150017,0.07873235,68145.0,68144.0,0.31284739]
[1722269150222,0.07302112,68145.0,68144.0,0.60634339]
[1722269150839,0.02302112,68145.0,68144.0,0.60634339]
[1722269151037,0.05,68146.0,68145.0,0.440236]
[1722269151241,0.05,68146.0,68145.0,0.60633539]
[1722269151354,0.0499127,68148.0,68145.0,0.45959039]
[1722269151572,0.0499127,68148.0,68143.0,0.04374674]
[1722269151573,0.05,68151.0,68150.0,0.146735]
[1722269151770,0.1499127,68151.0,68150.0,0.65005113]
[1722269152106,0.15565294,68151.0,68150.0,0.35658113]
[1722269152365,0.15565294,68151.0,68150.0,0.65005113]
[1722269152366,0.00574024,68151.0,68150.0,0.65005113]
[1722269152596,0.05574024,68151.0,68150.0,0.20984613]
[1722269152745,0.05,68151.0,68150.0,0.20984613]
[1722269153324,0.1499127,68151.0,68150.0,0.06674674]
[1722269153860,0.15566199,68151.0,68150.0,0.023]
[1722269154058,0.1499127,68147.0,68146.0,0.023]
[1722269154262,0.1499127,68147.0,68146.0,0.16609939]
[1722269154462,0.15566333,68147.0,68146.0,0.16609939]
[1722269154668,0.1499127,68147.0,68146.0,0.16609939]
[1722269154841,0.15566333,68147.0,68146.0,0.16609939]
[1722269155047,0.1499127,68149.0,68146.0,0.16609939]
[1722269155427,0.1499127,68149.0,68147.0,0.146741]
[1722269155605,0.1499127,68149.0,68148.0,0.023]
[1722269155832,0.001,68151.0,68150.0,0.146735]
[1722269155966,0.001,68151.0,68150.0,0.463205]
[1722269156212,0.051,68151.0,68150.0,0.31283439]
[1722269157111,0.051,68151.0,68150.0,0.16609939]
[1722269157745,0.05,68151.0,68150.0,0.16609939]
[1722269158403,0.05,68151.0,68150.0,0.31283439]
[1722269158525,0.07301813,68151.0,68150.0,0.18009939]
[1722269159011,0.05,68151.0,68150.0,0.18009939]
[1722269159211,0.051,68151.0,68150.0,0.19309939]
[1722269159410,0.051,68151.0,68150.0,0.17909939]
[1722269159788,0.05,68151.0,68150.0,0.16609939]
[1722269160202,0.05,68151.0,68150.0,0.31283439]
[1722269160379,0.05,68152.0,68151.0,0.146732]
[1722269160578,0.0999127,68153.0,68151.0,0.31283139]
[1722269160806,0.05,68153.0,68152.0,0.16609939]
[1722269161014,0.0999127,68153.0,68152.0,0.16609939]
[1722269161185,0.1499127,68153.0,68152.0,0.16609939]
[1722269161767,0.17293013,68153.0,68152.0,0.16609939]
[1722269161974,0.17293013,68153.0,68152.0,0.036]
[1722269162167,0.1509127,68153.0,68152.0,0.013]
[1722269162373,0.2976407,68153.0,68152.0,0.013]
[1722269162580,0.6673977,68153.0,68152.0,0.013]
[1722269163195,0.9608547,68153.0,68152.0,0.013]
[1722269163627,1.0225547,68153.0,68152.0,0.013]
[1722269163825,1.02832328,68153.0,68152.0,0.013]
[1722269164259,1.09761018,68153.0,68152.0,0.013]
[1722269164425,0.1499127,68128.0,68127.0,0.009086]
[1722269164629,0.6700597,68128.0,68127.0,0.009086]
[1722269164900,0.23542642,68128.0,68127.0,0.009086]
[1722269165069,0.23542642,68128.0,68127.0,0.15218539]
[1722269165070,0.15562642,68128.0,68127.0,0.15218539]
[1722269165678,0.17293919,68128.0,68127.0,0.15218539]
[1722269165911,0.15562381,68128.0,68127.0,0.15218539]
[1722269166353,0.15562381,68128.0,68127.0,0.009086]
[1722269166699,0.59597081,68128.0,68127.0,0.009086]
[1722269167109,0.15562381,68128.0,68127.0,0.009086]
[1722269167485,0.15562381,68128.0,68127.0,0.15218539]
[1722269167486,0.00571111,68128.0,68127.0,0.15218539]
[1722269167685,0.0775,68136.0,68127.0,0.15218539]
[1722269167686,0.05,68129.0,68128.0,0.146782]
[1722269167931,0.1,68129.0,68128.0,0.14309939]
[1722269168084,0.1,68129.0,68128.0,0.16609939]
[1722269168085,0.02302654,68129.0,68128.0,0.16609939]
[1722269168292,0.07302654,68129.0,68128.0,0.16609939]
[1722269168494,0.07870623,68129.0,68128.0,0.16609939]
[1722269170277,0.02870623,68129.0,68128.0,0.31288139]
[1722269170806,0.02302654,68129.0,68128.0,0.16609939]
[1722269171168,0.0787049,68129.0,68128.0,0.16609939]
[1722269171941,0.07302654,68129.0,68128.0,0.18009939]
[1722269172544,0.02302654,68129.0,68128.0,0.62044639]
[1722269172751,0.02302654,68129.0,68128.0,0.91401139]
[1722269172951,0.02302654,68129.0,68128.0,0.62044639]
[1722269173177,0.07302654,68129.0,68128.0,0.32688139]
[1722269173377,0.05,68131.0,68129.0,0.146779]
[1722269173577,0.05,68131.0,68130.0,0.16609939]
[1722269174340,0.05649085,68131.0,68130.0,0.16609939]
[1722269174584,0.15640355,68131.0,68130.0,0.023]
[1722269175175,0.15640355,68131.0,68130.0,0.31287739]
[1722269175176,0.00649085,68131.0,68130.0,0.31287739]
[1722269175378,0.00649085,68131.0,68130.0,0.91722069]
[1722269175592,0.04935547,68141.0,68140.0,0.440269]
[1722269175838,0.04935547,68141.0,68140.0,0.35660213]
[1722269175983,0.00846965,68141.0,68140.0,0.35660213]
[1722269176332,0.0999127,68145.0,68140.0,0.35660213]
[1722269176333,0.05,68145.0,68140.0,0.20984613]
[1722269176537,0.05986281,68144.0,68143.0,0.14675]
[1722269176738,0.0999127,68145.0,68144.0,0.146748]
[1722269176739,0.05,68145.0,68144.0,0.146748]
[1722269176879,0.05,68145.0,68144.0,0.58334339]
[1722269177077,0.05,68145.0,68144.0,0.60634339]
[1722269177285,0.1499127,68145.0,68144.0,0.16609939]
[1722269177481,0.05989805,68145.0,68144.0,0.16609939]
[1722269177686,0.05,68149.0,68144.0,0.16609939]
[1722269177890,0.04985584,68154.0,68153.0,0.146728]
[1722269178085,0.04985584,68154.0,68153.0,0.75003113]
[1722269178311,0.05,68159.0,68153.0,0.30984613]
[1722269178510,0.05,68159.0,68158.0,0.146717]
[1722269178713,0.05,68159.0,68158.0,0.58325139]
[1722269178891,0.05,68159.0,68158.0,0.31281639]
[1722269179127,0.05,68159.0,68158.0,0.60625139]
[1722269180328,0.05,68159.0,68158.0,0.31281639]
[1722269180576,0.05,68159.0,68158.0,0.16609939]
[1722269180781,0.051,68159.0,68158.0,0.16809939]
[1722269180980,0.074015,68159.0,68158.0,0.16809939]
[1722269181314,0.051,68159.0,68158.0,0.16809939]
[1722269181446,0.05,68159.0,68158.0,0.16609939]
[1722269181781,0.05,68159.0,68158.0,0.31281639]
[1722269182014,0.05,68159.0,68158.0,0.16609939]
[1722269183267,0.05,68159.0,68153.0,0.04374674]
[1722269183268,0.1499127,68154.0,68153.0,0.04374674]
[1722269183477,0.1499127,68154.0,68153.0,0.18684613]
[1722269183721,0.16150708,68154.0,68153.0,0.18684613]
[1722269183937,0.1499127,68154.0,68153.0,0.18684613]
[1722269184364,0.16152687,68154.0,68153.0,0.20084613]
[1722269184581,0.39676924,68154.0,68153.0,0.05774674]
[1722269184733,0.98367524,68154.0,68153.0,0.014]
[1722269184944,0.69022224,68154.0,68153.0,0.014]
[1722269185415,0.98367524,68154.0,68153.0,0.014]
[1722269186031,0.98367524,68154.0,68127.0,0.383351]
[1722269186032,0.1499127,68130.0,68129.0,0.04374674]
[1722269186235,0.1499127,68130.0,68127.0,0.009086]
[1722269186236,0.1499127,68130.0,68127.0,0.380586]
[1722269186237,0.1499127,68128.0,68127.0,0.380586]
[1722269186645,0.18441357,68128.0,68127.0,0.380586]
[1722269188377,0.62476057,68128.0,68127.0,0.009086]
[1722269188573,0.33119557,68128.0,68127.0,0.009086]
[1722269188979,0.18441357,68128.0,68127.0,0.009086]
[1722269189758,0.18441357,68128.0,68127.0,0.032086]
[1722269191288,0.13450087,68128.0,68127.0,0.032086]
[1722269191521,0.08541357,68128.0,68127.0,0.033086]
[1722269192124,0.07393695,68128.0,68127.0,0.17987]
[1722269192328,0.08333365,68128.0,68127.0,0.033086]
[1722269192491,0.03342095,68128.0,68127.0,0.17987]
[1722269192854,0.08333365,68128.0,68127.0,0.17987]
[1722269193069,0.03342095,68128.0,68127.0,0.17987]
[1722269193263,0.03342095,68128.0,68127.0,1.01504339]
[1722269193693,0.02402425,68128.0,68127.0,0.42790539]
[1722269194110,0.02402425,68128.0,68127.0,0.72147439]
[1722269194305,0.03343315,68128.0,68127.0,1.01504339]
[1722269194509,0.02402425,68128.0,68127.0,1.30869969]
[1722269194687,0.02402425,68128.0,68127.0,1.40869969]
[1722269194885,0.001,68128.0,68127.0,1.40869969]
[1722269195103,0.001,68128.0,68127.0,1.41069969]
[1722269195311,0.001,68128.0,68127.0,1.46869969]
[1722269195507,0.001,68128.0,68127.0,1.47069969]
[1722269195738,0.05,68139.0,68136.0,0.293527]
[1722269195910,0.05,68139.0,68138.0,0.440281]
[1722269196109,0.4753,68142.0,68138.0,0.440281]
[1722269196110,0.4753,68142.0,68141.0,0.146754]
[1722269196387,0.1482782,68155.0,68141.0,0.146754]
[1722269196388,0.05,68149.0,68148.0,0.440217]
[1722269196515,0.05,68149.0,68148.0,0.35658513]
[1722269196701,0.05,68149.0,68148.0,0.20984613]
[1722269196702,0.1499127,68149.0,68148.0,0.20984613]
[1722269197525,0.1,68149.0,68148.0,0.50332413]
[1722269197723,0.05,68149.0,68148.0,0.20984613]
[1722269197956,0.1499127,68149.0,68148.0,0.20984613]
[1722269199465,0.17293204,68149.0,68148.0,0.20984613]
[1722269199666,0.17293204,68149.0,68148.0,0.22284613]
[1722269200076,0.17293204,68149.0,68148.0,0.36958513]
[1722269200254,0.02301934,68149.0,68148.0,0.95654113]
[1722269200865,0.02301934,68149.0,68148.0,1.25001913]
[1722269201284,0.02301934,68149.0,68148.0,1.39431913]
[1722269201696,0.02301934,68149.0,68148.0,1.35057239]
[1722269202035,0.02401934,68149.0,68148.0,1.35257239]
[1722269202436,0.02401934,68149.0,68148.0,1.28947239]
[1722269202585,0.02301934,68149.0,68148.0,1.20627239]
[1722269203209,0.02401934,68149.0,68148.0,1.20827239]
[1722269203587,0.02401934,68149.0,68148.0,1.20835969]
[1722269203787,0.02301934,68149.0,68148.0,1.19335969]
[1722269204044,0.02301934,68149.0,68148.0,1.20635969]
[1722269204335,0.02301934,68149.0,68148.0,1.20835969]
[1722269204544,0.02301934,68149.0,68148.0,1.19335969]
[1722269204744,0.02301934,68149.0,68148.0,1.58883769]
[1722269204941,0.02301934,68149.0,68148.0,1.74983769]
[1722269206373,0.04930062,68162.0,68161.0,1.126977]
[1722269206574,0.04930062,68162.0,68161.0,1.04340113]
[1722269206788,0.05,68165.0,68164.0,0.146705]
[1722269206990,0.05,68165.0,68164.0,0.16609939]
[1722269207160,0.15792755,68165.0,68164.0,0.023]
[1722269207360,0.15792755,68165.0,68161.0,0.04374674]
[1722269207361,0.1499127,68163.0,68162.0,0.023]
[1722269207589,0.1499127,68163.0,68162.0,0.16609939]
[1722269208202,0.23932756,68163.0,68162.0,0.16609939]
[1722269208402,0.2112127,68162.0,68161.0,0.04574674]
[1722269208602,0.2112127,68162.0,68161.0,0.04374674]
[1722269208839,0.21927434,68162.0,68161.0,0.04374674]
[1722269209159,0.21927434,68162.0,68161.0,0.18684613]
[1722269209407,0.02301473,68162.0,68161.0,0.33355713]
[1722269209608,0.1499127,68162.0,68161.0,0.62697913]
[1722269209810,0.1499127,68162.0,68161.0,0.33355713]
[1722269210149,0.05,68163.0,68161.0,0.20984613]
[1722269210464,0.05,68163.0,68162.0,0.60622639]
[1722269210877,0.05,68163.0,68162.0,0.31280839]
[1722269210878,0.1499127,68163.0,68162.0,0.31280839]
[1722269211073,0.1499127,68163.0,68162.0,0.60622639]
[1722269211282,0.1499127,68167.0,68163.0,0.1]
[1722269211504,0.1499127,68167.0,68166.0,0.440101]
[1722269211681,0.1499127,68167.0,68166.0,0.58320039]
[1722269211823,0.1499127,68167.0,68166.0,0.60620039]
[1722269212026,0.0499127,68167.0,68166.0,0.60620039]
[1722269212395,0.0015542,68169.0,68168.0,0.7335673]
[1722269212601,0.0015542,68174.0,68173.0,0.246685]
[1722269212884,0.04990078,68175.0,68173.0,0.246685]
[1722269212885,0.04990078,68175.0,68174.0,0.146683]
[1722269213145,0.90456131,68184.0,68183.0,0.439992]
[1722269213146,0.6252127,68184.0,68183.0,0.439992]
[1722269213395,0.6252127,68184.0,68183.0,0.64983813]
[1722269213396,0.05,68184.0,68183.0,0.64983813]
[1722269213632,0.1499127,68184.0,68183.0,0.64983813]
[1722269213848,0.1499127,68184.0,68183.0,0.35651013]
[1722269213982,0.0499127,68184.0,68183.0,0.20984613]
[1722269214258,0.0499127,68184.0,68183.0,0.64983813]
[1722269214462,0.1,68185.0,68184.0,0.439984]
[1722269214463,0.1499127,68185.0,68184.0,0.439984]
[1722269214674,0.1499127,68185.0,68184.0,0.60608339]
[1722269214884,0.2109127,68187.0,68186.0,0.439972]
[1722269215094,0.0499127,68187.0,68186.0,0.60607139]
[1722269215789,0.1499127,68187.0,68186.0,0.31275639]
[1722269216015,0.1499127,68187.0,68186.0,0.16609939]
[1722269216231,0.0499127,68187.0,68186.0,0.31275639]
[1722269216485,0.0499127,68187.0,68186.0,0.32675639]
[1722269216486,0.1499127,68187.0,68186.0,0.32675639]
[1722269216629,0.17291947,68187.0,68186.0,0.18009939]
[1722269216851,0.07291947,68187.0,68186.0,0.63407139]
[1722269217286,0.17291947,68187.0,68186.0,0.19409939]
[1722269217701,0.17291947,68187.0,68186.0,0.18009939]
[1722269218151,0.17391947,68187.0,68186.0,0.19409939]
[1722269219694,0.17291947,68187.0,68186.0,0.16609939]
[1722269220137,0.17291947,68187.0,68186.0,0.18009939]
[1722269220336,0.38597447,68187.0,68186.0,0.014]
[1722269220611,1.05549647,68187.0,68186.0,0.014]
[1722269220785,1.05549647,68187.0,68171.0,0.1]
[1722269220786,0.05,68177.0,68171.0,0.1]
[1722269220985,0.1499127,68173.0,68172.0,0.14309939]
[1722269221221,0.2885127,68173.0,68172.0,0.14309939]
[1722269221762,0.1499127,68173.0,68172.0,0.14309939]
[1722269222247,0.1509127,68173.0,68172.0,0.15609939]
[1722269222565,0.1509127,68173.0,68172.0,0.17909939]
[1722269223151,0.1509127,68173.0,68172.0,0.31278639]
[1722269223152,0.1499127,68173.0,68172.0,0.31278639]
[1722269223358,0.0499127,68173.0,68172.0,0.60616139]
[1722269223559,0.0776,68179.0,68178.0,0.146674]
[1722269223560,0.0499127,68179.0,68178.0,0.146674]
[1722269223767,0.0499127,68179.0,68178.0,0.64986913]
[1722269223964,0.05687382,68179.0,68178.0,0.64986913]
[1722269224426,0.00696112,68179.0,68178.0,0.94321813]
[1722269224627,0.15687382,68179.0,68178.0,0.20984613]
[1722269224971,0.15687382,68179.0,68178.0,0.21584613]
[1722269225563,0.23217382,68179.0,68178.0,0.006]
[1722269225791,1.02683582,68179.0,68178.0,0.006]
[1722269225991,0.44014582,68179.0,68178.0,0.006]
[1722269226193,0.29447382,68179.0,68178.0,0.013]
[1722269226393,0.44114582,68179.0,68178.0,0.013]
[1722269226805,0.24456112,68179.0,68178.0,0.013]
[1722269227146,0.29447382,68179.0,68178.0,0.013]
[1722269228357,0.31748495,68179.0,68178.0,0.036]
[1722269228690,0.29447382,68179.0,68178.0,0.036]
[1722269231055,0.29447382,68179.0,68178.0,0.013]
[1722269231256,0.73449082,68179.0,68178.0,0.013]
[1722269231470,1.02783582,68179.0,68178.0,0.013]
[1722269231899,0.75750214,68179.0,68178.0,0.013]
[1722269232115,0.46415714,68179.0,68178.0,0.013]
[1722269232532,0.75750214,68179.0,68178.0,0.013]
[1722269232934,1.34419214,68179.0,68178.0,0.013]
[1722269234175,1.95063889,68179.0,68178.0,0.013]
[1722269234379,1.95063889,68179.0,68148.0,0.175]
[1722269234380,0.1499127,68150.0,68148.0,0.1]
[1722269234594,0.05,68149.0,68148.0,0.1]
[1722269234828,0.05691657,68149.0,68148.0,0.1]
[1722269235376,0.05,68147.0,68146.0,0.04374674]
[1722269235581,0.05,68147.0,68146.0,0.15303926]
[1722269235819,0.1499127,68147.0,68146.0,0.04374674]
[1722269235994,0.1499127,68147.0,68129.0,0.1]
[1722269235995,0.1499127,68136.0,68135.0,0.04374674]
[1722269236197,0.1499127,68136.0,68135.0,0.14309939]
[1722269237412,0.0499127,68129.0,68128.0,0.33362813]
[1722269237636,0.0499127,68129.0,68128.0,0.62719313]
[1722269237866,0.0499127,68129.0,68128.0,0.72719313]
[1722269238369,0.07293661,68129.0,68128.0,0.72719313]
[1722269238550,0.0499127,68129.0,68128.0,0.72719313]
[1722269238729,0.1509127,68129.0,68128.0,0.31584613]
[1722269239306,0.15764453,68129.0,68128.0,0.31584613]
[1722269239507,0.15764453,68129.0,68128.0,0.47662813]
[1722269239720,0.1509127,68129.0,68128.0,0.47662813]